[Event "European Women-ch 2023"]
[Site "Petrovac"]
[Date "2023.03.18"]
[Round "1.4"]
[White "Lomaia, Diana"]
[Black "Lazarne Vajda, Szidonia"]
[Result "0-1"]
[ECO "D31"]
[WhiteElo "1950"]
[BlackElo "2294"]
[Annotator "TA"]
[PlyCount "144"]
[EventDate "2023.03.15"]
[EventType "swiss"]
[EventCountry "MNE"]
[SourceTitle "playchess.com"]
[Source "ChessBase"]
[SourceQuality "1"]
[TimeControl "40/5400+30:1800+30"]

{[%evp 13,144,13,20,11,31,31,58,35,37,30,36,36,37,23,43,20,46,44,55,44,64,45,109,25,39,33,30,-6,54,66,68,59,50,45,59,23,21,38,44,0,0,0,0,-6,0,-6,-3,-4,-4,-8,-10,-9,-7,-25,0,-8,0,-8,-8,-8,-10,-15,-15,-21,-22,-34,-12,-36,-37,-68,-22,-23,-19,-22,-13,-19,-19,-20,-20,-34,-36,-136,-136,-137,-35,-47,-42,-30,-43,-79,-52,-109,-102,-141,-141,-191,-8,-527,-8,-8,-8,-8,0,-26,-8,-18,-25,-28,-8,-8,-8,-8,-8,-29954,-29954,-29963,-5385,-29973,-29974,-29974,-29976,-29975,-29976,-29976,-29977,-29976,-29977,-29977,-29978,-29978,-29979,-29976,-29976]} 1. d4 {[%emt 0:00:04]} d5 {[%emt 0:00:19]} 2. c4 {[%emt 0:00:14]} e6 {[%emt 0:00:38]} 3. Nc3 {[%emt 0:00:39]} Be7 {[%emt 0:01:08]} 4. cxd5 {[%emt 0:02:19]} exd5 {[%emt 0:00:20]} 5. Bf4 {[%emt 0:01:28]} c6 {[%emt 0:01:14]} 6. e3 {[%emt 0:00:26]} Bf5 {[%emt 0:05:44]} 7. Nge2 {[%emt 0:02:31]} Nf6 {[%emt 0:08:12]} 8. Ng3 {[%emt 0:01:24] D31: Queen's Gambit Declined: Semi-Slav without ...Nf6 (+ Marshall Gambit and Noteboom) and Exchange Variation lines without ...Nf6.} Be6 {[%emt 0:03:41]} 9. Bd3 {[%emt 0:02:40]} Bd6 {[%emt 0:04:38]} 10. Bxd6 {[%emt 0:06:25] White is slightly better.} Qxd6 {[%emt 0:00:07] [#]} 11. Rb1 $146 {[%emt 0:09:15]} ({Predecessor:} 11. Nf5 Bxf5 12. Bxf5 Nbd7 13. O-O O-O 14. Qc2 Rfe8 15. Rfe1 g6 16. Bd3 Kg7 17. h3 {½-½ Sandipan,C (2618)-Schroeder,J (2311) Pardubice Czech op-A 23rd 2012 (1)}) 11... a5 {[%emt 0:09:47]} 12. Qc2 {[%emt 0:20:32]} Nbd7 {[%emt 0:07:55]} 13. h3 {[%emt 0:06:59]} Nb6 {[%emt 0:06:10]} 14. b3 {[%emt 0:06:47]} Nc8 {[%emt 0:05:59]} 15. O-O {[%emt 0:04:29]} h6 {[%emt 0:09:25]} 16. e4 {[%emt 0:09:36]} dxe4 {[%emt 0:01:22]} 17. Ncxe4 {[%emt 0:00:06]} Qxd4 {[%emt 0:05:33]} ({Black should play} 17... Nxe4 $14 18. Nxe4 (18. Bxe4 O-O $11) 18... Qxd4) 18. Nc5 {[%emt 0:00:59]} (18. Rbd1 $16 Nd5 19. Bc4) 18... O-O $1 $11 {[%emt 0:01:30]} 19. Nxe6 {[%emt 0:10:47]} fxe6 {[%emt 0:00:06]} 20. Rbe1 {[%emt 0:01:15]} (20. Rbd1 $5 {[%cal Rd3h7]} Qb4 21. Rfe1 $14) 20... Nb6 {[%emt 0:09:07]} (20... Qd7 $11) 21. Rxe6 $14 {[%emt 0:03:58] Nf5 is the strong threat.} Rae8 {[%emt 0:01:16]} 22. Rxe8 {[%emt 0:01:03]} Rxe8 {[%emt 0:00:13]} 23. Bg6 {[%emt 0:01:44]} Rd8 {[%emt 0:01:14]} 24. Re1 {[%emt 0:02:56]} Qd2 {[%emt 0:04:56]} 25. Qxd2 {[%emt 0:01:07]} Rxd2 {[%emt 0:00:04]} 26. Re2 {[%emt 0:00:18]} Rxe2 {[%emt 0:01:21]} 27. Nxe2 $11 {[%emt 0:00:04][%mdl 4096] Endgame KBN-KNN} Nfd5 {[%emt 0:02:39]} 28. Kf1 {[%emt 0:01:10]} a4 {[%emt 0:01:02]} 29. Ke1 {[%emt 0:02:23]} Kf8 {[%emt 0:01:40]} 30. Kd2 {[%emt 0:00:43]} Ke7 {[%emt 0:00:44]} 31. bxa4 {[%emt 0:00:51]} Nxa4 {[%emt 0:00:06]} 32. Bc2 {[%emt 0:00:08]} Nc5 {[%emt 0:00:33]} 33. g3 {[%emt 0:00:58]} Kf6 {[%emt 0:01:54]} 34. Nd4 {[%emt 0:00:14]} Nb4 {[%emt 0:02:05]} 35. Bb1 {[%emt 0:00:34]} Ne6 {[%emt 0:00:56]} 36. Ne2 {[%emt 0:00:42]} Nd5 {[%emt 0:01:45]} 37. Be4 {[%emt 0:00:31]} Ke5 {[%emt 0:00:37]} 38. Bg2 {[%emt 0:00:30]} g5 {[%emt 0:00:47]} 39. a3 {[%emt 0:00:35]} b5 {[%emt 0:01:01]} 40. Nc1 {[%emt 0:00:00]} Nc5 {[%emt 0:00:00]} 41. Kc2 {[%emt 0:06:28]} Kd6 {[%emt 0:04:18]} (41... Ne4 $15 42. Nd3+ Kd4) 42. Ne2 {[%emt 0:02:56]} Ne6 {[%emt 0:02:16]} 43. Kd3 {[%emt 0:07:40]} Ke5 {[%emt 0:02:18]} 44. Kd2 {[%emt 0:06:04]} c5 {[%emt 0:06:17]} 45. Bxd5 {[%emt 0:03:55]} Kxd5 {[%emt 0:00:06] KN-KN} 46. Nc3+ {[%emt 0:00:55]} Kc4 {[%emt 0:02:18]} 47. Kc2 {[%emt 0:02:58]} (47. Ne4 $1 $15) 47... Nd4+ $1 $17 {[%emt 0:02:18]} 48. Kb2 {[%emt 0:00:02]} Kd3 {[%emt 0:00:38]} (48... h5 $1 $17 {White must now prevent ...Kd3.} 49. h4 gxh4 50. gxh4 Kd3) 49. f4 $1 $15 {[%emt 0:01:17]} gxf4 {[%emt 0:02:05]} 50. gxf4 {[%emt 0:00:02]} Kc4 {[%emt 0:00:31]} 51. Ne4 {[%emt 0:00:57]} Nf5 {[%emt 0:00:16]} 52. Nc3 {[%emt 0:01:32]} ({White should try} 52. Kc2 $15) 52... h5 $1 $17 {[%emt 0:01:29]} 53. Ne4 {[%emt 0:00:59] [#]} h4 $1 {[%emt 0:00:21]} 54. Nc3 {[%emt 0:01:12] [#]} (54. Kc2 $17 {was worth a try.}) 54... Nd6 $2 {[%emt 0:00:40]} ({Better is} 54... Ne3 $1 $19 {[%cal Re3d5] Strongly threatening ...Nd5.} 55. a4 bxa4 56. Nxa4 Kd4) 55. Nd1 $2 {[%emt 0:00:56][%mdl 8192]} (55. Kc2 $11) 55... Kd4 $2 {[%emt 0:01:02]} (55... Kd3 $19 56. Nc3 Ne4) 56. Nc3 $11 {[%emt 0:00:23]} Nc4+ {[%emt 0:05:17]} 57. Kb3 {[%emt 0:00:17]} Nd6 {[%emt 0:00:50]} 58. Kc2 {[%emt 0:00:58]} Kc4 {[%emt 0:00:42]} 59. Kb2 {[%emt 0:00:23]} Nf5 {[%emt 0:00:27] aiming for ...Ne3.} 60. Ne4 {[%emt 0:00:26]} Kd4 {[%emt 0:01:41]} 61. Nc3 {[%emt 0:00:11]} b4 {[%emt 0:03:12]} 62. axb4 $1 {[%emt 0:00:07]} cxb4 {[%emt 0:00:04][%cal Bc5b4,Bb4b3,Bb3b2][%mdl 32]} 63. Nb5+ $2 {[%emt 0:01:02][%mdl 8192]} (63. Nb1 $11) 63... Ke4 {[%emt 0:00:27]} 64. Nc7 {[%emt 0:00:27]} Nd4 {[%emt 0:00:56]} (64... Kxf4 $142 65. Ne6+ Kg3 66. Kb3 Kxh3 67. Ng5+ Kg4 68. Ne4 Kf4 69. Nf2 Kg3 70. Ne4+ Kf4 71. Nf2 Kf3 72. Nh3 Kg3 73. Ng5 Nd6 74. Kxb4 Kg4 75. Ne6 h3 76. Nd4 h2 77. Kc5 Ne4+ 78. Kb4 h1=Q 79. Nc6 Qg1 80. Ne5+ Kf5 81. Nf3 Qf2 82. Nh4+ Qxh4 83. Kc4 Qf2 84. Kb4 Qb6+ 85. Kc4 Qb2 86. Kd5 Qc1 87. Kd4 Qc3+ 88. Kd5 Qc5#) 65. Na6 {[%emt 0:00:45]} b3 {[%emt 0:00:53] Black mates.} 66. Kc3 {[%emt 0:00:30] [#]} Kxf4 $1 {[%emt 0:00:41]} 67. Nc5 {[%emt 0:00:26] [#]} Kg3 $1 {[%emt 0:01:03]} 68. Ne4+ {[%emt 0:00:12]} (68. Nd3 Kxh3) 68... Kxh3 {[%emt 0:00:04]} 69. Kxd4 {[%emt 0:00:23]} b2 {[%emt 0:00:09]} 70. Nd2 {[%emt 0:00:54]} Kg2 {[%emt 0:00:10]} 71. Kc3 {[%emt 0:00:28]} h3 {[%emt 0:00:04][%cal Bh4h3,Bh3h2][%mdl 32]} 72. Kxb2 {[%emt 0:00:38]} h2 {[%emt 0:00:04] Weighted Error Value: White=0.28 (precise) /Black=0.33} 0-1

[Event "European Women-ch 2023"]
[Site "Petrovac"]
[Date "2023.03.18"]
[Round "1.5"]
[White "Osmak, Yuliia"]
[Black "Calzetta Ruiz, Monica"]
[Result "1-0"]
[ECO "D32"]
[WhiteElo "2445"]
[BlackElo "2185"]
[Annotator "TA"]
[PlyCount "71"]
[EventDate "2023.03.15"]
[EventType "swiss"]
[EventCountry "MNE"]
[SourceTitle "playchess.com"]
[Source "ChessBase"]
[SourceQuality "1"]
[TimeControl "40/5400+30:1800+30"]

{[%evp 12,71,53,45,43,51,65,60,39,49,72,93,96,93,98,94,92,73,89,94,93,91,91,88,94,93,99,101,107,105,126,103,154,99,96,104,110,91,88,73,75,80,72,80,81,60,86,85,91,85,89,86,443,433,650,556,1039,548,539,509,546,502]} 1. d4 {[%emt 0:00:03]} d5 {[%emt 0:00:09]} 2. c4 {[%emt 0:00:05]} e6 {[%emt 0:00:05]} 3. Nc3 {[%emt 0:00:04]} c5 {[%emt 0:00:05]} 4. cxd5 {[%emt 0:00:04]} cxd4 {[%emt 0:00:08]} 5. Qa4+ {[%emt 0:00:05]} Bd7 {[%emt 0:00:05]} 6. Qxd4 {[%emt 0:00:04]} exd5 {[%emt 0:00:12]} 7. Qxd5 {[%emt 0:00:04]} ({Much worse is} 7. Nxd5 Nc6 8. Qf4 Qa5+ 9. Nc3 (9. Qd2 $2 Bb4 $19) 9... Nb4 $11) 7... Nf6 {[%emt 0:00:22] D32: Tarrasch Defence: Sidelines and lines without g3.} 8. Qd1 {[%emt 0:00:08]} Bc5 {[%emt 0:00:11]} 9. Nf3 $1 {[%emt 0:00:39] 9.Nf3 scores better than 9.e3.} O-O {[%emt 0:00:32] White is slightly better.} 10. a3 {[%emt 0:00:07]} Qe7 {[%emt 0:03:22]} 11. Bg5 {[%emt 0:07:42] [#]} Bc6 $146 {[%emt 0:20:17]} ({Predecessor:} 11... h6 12. Bxf6 Qxf6 13. e3 Rd8 14. Qb3 Bc6 15. Be2 Nd7 16. O-O Ne5 17. Nxe5 Qxe5 {1-0 So,W (2760)-Vakhlamov,I (2413) Titled Tuesday intern op 31st Jan Early blitz 2023 (7)}) 12. e3 {[%emt 0:01:49]} Rd8 {[%emt 0:06:11]} 13. Qc2 {[%emt 0:03:22]} Nbd7 {[%emt 0:14:15][%cal Bb8d7,Bd7f6,Bf6g4][%mdl 32]} 14. Bb5 {[%emt 0:19:00]} Bxb5 {[%emt 0:09:51]} 15. Nxb5 {[%emt 0:00:17]} Rac8 {[%emt 0:00:05][%cal Oc5e3]} 16. Nc3 {[%emt 0:03:05][%cal Bb5c3,Bc3e2,Be2d4,Bd4f3][%mdl 32] White is more active.} h6 {[%emt 0:09:06]} 17. Bxf6 {[%emt 0:04:23]} Nxf6 {[%emt 0:00:21]} 18. O-O {[%emt 0:00:19]} Bd6 {[%emt 0:24:19]} 19. Rac1 {[%emt 0:08:16]} Rc5 {[%emt 0:00:46]} 20. Qa4 {[%emt 0:07:29]} Rdc8 {[%emt 0:02:43]} 21. Ne2 {[%emt 0:14:47]} b5 {[%emt 0:01:45]} (21... R8c7 $142) 22. Qb3 {[%emt 0:01:09]} ({White should play} 22. Rxc5 Rxc5 23. Qa6) 22... Ng4 {[%emt 0:02:46]} 23. Rxc5 {[%emt 0:01:14]} Rxc5 {[%emt 0:00:03]} 24. h3 {[%emt 0:03:22]} Ne5 {[%emt 0:00:28] [#] ...Nxf3+ is the strong threat.} 25. Ned4 {[%emt 0:00:09]} Nxf3+ {[%emt 0:02:06]} 26. Nxf3 {[%emt 0:00:09]} Qc7 {[%emt 0:02:19]} 27. Rd1 {[%emt 0:03:16]} a6 {[%emt 0:00:12]} 28. Qd3 {[%emt 0:00:38]} Rc6 {[%emt 0:01:04]} 29. Nd4 {[%emt 0:02:54]} Rc1 {[%emt 0:00:05]} 30. Ne2 {[%emt 0:03:34]} (30. Qd2 {simplifies} Rxd1+ 31. Qxd1 Be5 32. b3) 30... Bh2+ {[%emt 0:00:29]} 31. Kh1 {[%emt 0:01:20]} Rc2 {[%emt 0:00:11][%mdl 8192] This move loses the game for Black.} (31... Rxd1+ $16 {is tougher.} 32. Qxd1 Be5) 32. f4 $18 {[%emt 0:03:14] White is clearly winning.} Rxb2 {[%emt 0:01:04]} (32... Bxf4 $142 33. Nxf4 Rc6) 33. Kxh2 {[%emt 0:00:13] [#] Strongly threatening Rc1.} Qc6 {[%emt 0:00:18]} 34. Rd2 {[%emt 0:00:34]} Rxd2 {[%emt 0:00:39]} 35. Qxd2 {[%emt 0:00:03]} Qb6 {[%emt 0:00:36]} 36. Qd4 {[%emt 0:01:15] Weighted Error Value: White=0.34/Black=0.38} 1-0

[Event "European Women-ch 2023"]
[Site "Petrovac"]
[Date "2023.03.18"]
[Round "1.5"]
[White "Narva, Mai"]
[Black "Froewis, Annika"]
[Result "1/2-1/2"]
[ECO "C78"]
[WhiteElo "2389"]
[BlackElo "2123"]
[Annotator "TA"]
[PlyCount "95"]
[EventDate "2023.03.15"]
[EventType "swiss"]
[EventCountry "MNE"]
[SourceTitle "playchess.com"]
[Source "ChessBase"]
[SourceQuality "1"]
[TimeControl "40/5400+30:1800+30"]

{[%evp 17,95,37,45,12,12,12,2,0,0,13,14,0,0,0,-11,-3,-16,-50,-32,-129,0,0,0,0,-16,-7,-12,0,0,0,0,0,0,3,13,14,11,-71,-56,-50,-72,-81,-7,-8,-22,-28,-30,-152,62,0,116,-76,-79,-76,0,-199,-195,-183,-23,-23,-23,-21,-23,-25,-11,-18,-13,-34,-27,-33,-34,-45,-52,-65,0,0,0,0,0,0]} 1. e4 {[%emt 0:00:03]} e5 {[%emt 0:00:07]} 2. Nf3 {[%emt 0:00:18]} Nc6 {[%emt 0:00:06]} 3. Bb5 {[%emt 0:00:08]} a6 {[%emt 0:00:07]} 4. Ba4 {[%emt 0:00:06]} Nf6 {[%emt 0:00:08]} 5. O-O {[%emt 0:00:13]} b5 {[%emt 0:00:10]} 6. Bb3 {[%emt 0:00:09]} Bc5 {[%emt 0:00:12]} 7. a4 {[%emt 0:00:15]} Rb8 {[%emt 0:00:08]} 8. c3 {[%emt 0:00:17]} d6 {[%emt 0:00:17]} 9. d4 {[%emt 0:00:18]} Bb6 {[%emt 0:00:19]} 10. a5 $1 {[%emt 0:00:21] 10.a5 is better than 10.axb5. C78: Ruy Lopez: Archangelsk and Möller Defences.} Ba7 {[%emt 0:00:12]} (10... Bxa5 $2 11. dxe5 (11. d5 Ne7 $18) 11... dxe5 12. Qxd8+ Kxd8 13. Bd5 (13. Bxf7 Bb6 $16) 13... Nxd5 14. exd5 $18) 11. h3 {[%emt 0:00:20]} O-O {[%emt 0:00:18]} 12. Be3 {[%emt 0:00:31]} exd4 {[%emt 0:03:47]} 13. cxd4 {[%emt 0:00:22]} Nb4 {[%emt 0:01:21][%cal Oc8b7]} 14. Nc3 {[%emt 0:04:52]} Bb7 {[%emt 0:01:29]} 15. Bg5 {[%emt 0:06:41]} h6 {[%emt 0:05:11]} 16. Bh4 {[%emt 0:02:10]} c5 $1 {[%emt 0:10:49] [#]} (16... Bxe4 $2 17. Nxe4 g5 18. Nexg5 hxg5 19. Bxg5 $18) ({Don't do} 16... g5 17. Nxg5 hxg5 18. Bxg5 $16) 17. e5 $146 {[%emt 0:11:03]} ({Predecessor:} 17. Re1 c4 18. Bc2 Nxc2 19. Qxc2 Re8 20. d5 g5 21. Bg3 {1-0 Bogner,S (2545)-Parvanyan,A (2428) Kiel Doppelbauer GM 2nd 2022 (1)}) 17... dxe5 {[%emt 0:12:25]} 18. dxe5 {[%emt 0:01:07]} (18. dxc5 $1 $15 Re8 19. Bxf7+ {[%mdl 64] Decoy} Kxf7 20. Qb3+ Bd5 21. Qxb4 Bxf3 22. gxf3) 18... Qxd1 {[%emt 0:00:57]} (18... g5 $1 $17 {[%cal Rg5h4]} 19. exf6 gxh4) 19. Raxd1 $11 {[%emt 0:01:51]} Nh5 {[%emt 0:03:23][%cal Bf6h5,Bh5f4,Bf4h3][%mdl 32] ...g5 is the strong threat.} 20. Be7 {[%emt 0:08:49]} Rfe8 {[%emt 0:07:27]} 21. Rd7 {[%emt 0:17:34][%cal Ob3f7] [#]} Rxe7 {[%emt 0:15:48]} 22. Rxe7 {[%emt 0:00:00]} c4 {[%emt 0:00:10]} 23. Ba2 {[%emt 0:00:00]} Nd3 {[%emt 0:10:08]} 24. Bb1 {[%emt 0:04:58]} Nhf4 {[%emt 0:05:31]} 25. Ne4 {[%emt 0:11:30]} Nxb2 {[%emt 0:07:13][%cal Oc4c3]} 26. Nd6 {[%emt 0:15:15][%csl LRb7,LRf7] Really sharp!} Bxf3 {[%emt 0:02:37]} 27. gxf3 {[%emt 0:01:26]} (27. Rxa7 $11 Bxg2 28. Rxa6) 27... Bc5 $1 $17 {[%emt 0:01:57]} 28. Rc7 {[%emt 0:02:40]} Nbd3 {[%emt 0:03:47]} 29. Nxf7 {[%emt 0:05:50]} Nxh3+ {[%emt 0:02:53] Excellent horsemanship.} (29... Bb4 $1 $17 {[%cal Rb4a5]} 30. Bxd3 Nxd3) 30. Kh2 $132 {[%emt 0:01:18][%mdl 2048] White is fighting back} Nhxf2 {[%emt 0:03:34]} 31. Nd6 {[%emt 0:04:21] Black must now prevent Rg1.} Bd4 {[%emt 0:01:42]} 32. Re7 {[%emt 0:01:03]} (32. f4 $1 $11 {keeps the balance.} Nxf4 33. Rc6) 32... Nxe5 $2 {[%emt 0:01:38] [#]} ({Black should try} 32... Rf8 $1 $17 {[%cal Of2g4] Threatens to win with ...Ng4+!} 33. Kg3 h5) 33. Rxf2 {[%emt 0:00:35]} ({White should play} 33. Nf5 $1 $14 Nxf3+ 34. Kg2) 33... Nc6 {[%emt 0:00:31] [#]} (33... Kf8 $11 {remains equal.}) 34. Nf5 $2 {[%emt 0:00:33]} Bxf2 $17 {[%emt 0:00:25]} 35. Rxg7+ {[%emt 0:00:13] [#]} Kf8 {[%emt 0:00:27]} (35... Kh8 $1 $17 {[%cal Of2e3] ...Be3! would be deadly.} 36. Rg6 Nb4 37. Rxh6+ Kg8 38. Ne7+ Kg7 39. Rg6+ Kf7) 36. Rc7 $2 {[%emt 0:00:35]} (36. Rh7 $11) 36... Nxa5 $19 {[%emt 0:00:35]} 37. Rh7 {[%emt 0:00:30]} Rb7 $2 {[%emt 0:00:38]} ({Better is} 37... Rb6 $19 {And now ...Nb3 would win.} 38. Be4 Ke8 39. Rh8+ Kf7) 38. Rh8+ $11 {[%emt 0:00:19]} Kf7 {[%emt 0:00:02] Hoping for ...Rd7.} 39. Nd6+ {[%emt 0:00:13]} Ke6 {[%emt 0:00:19]} 40. Rxh6+ {[%emt 0:00:00]} Ke5 {[%emt 0:00:00] Strongly threatening ...Rb6.} 41. Nxb7 {[%emt 0:02:06]} Nxb7 {[%emt 0:00:11]} 42. Rxa6 {[%emt 0:01:56][%cal Of3f4][%mdl 4096] Endgame KRB-KBN} Bc5 {[%emt 0:05:24]} 43. Kg2 {[%emt 0:12:49][%cal Of3f4]} b4 {[%emt 0:04:18][%cal Bb5b4,Bb4b3][%mdl 1056] Black has compensation.} 44. Kf1 {[%emt 0:03:40][%cal Of3f4]} b3 {[%emt 0:10:03]} 45. Ke2 {[%emt 0:01:44]} c3 {[%emt 0:05:04]} (45... Kd4 $15) 46. Ra8 {[%emt 0:01:52] The position is equal.} c2 {[%emt 0:02:42]} 47. Bxc2 {[%emt 0:00:11]} bxc2 {[%emt 0:00:05]} 48. Kd2 {[%emt 0:00:12] An exciting game.   Weighted Error Value: White=0.30/Black=0.27 (precise)} 1/2-1/2

[Event "European Women-ch 2023"]
[Site "Petrovac"]
[Date "2023.03.18"]
[Round "1.5"]
[White "Urh, Zala"]
[Black "Makka, Ioulia"]
[Result "1-0"]
[ECO "B12"]
[WhiteElo "2294"]
[BlackElo "1949"]
[Annotator "TA"]
[PlyCount "83"]
[EventDate "2023.03.15"]
[EventType "swiss"]
[EventCountry "MNE"]
[SourceTitle "playchess.com"]
[Source "ChessBase"]
[SourceQuality "1"]
[TimeControl "40/5400+30:1800+30"]

{[%evp 9,83,0,20,11,40,39,44,44,45,37,41,40,54,47,53,52,61,55,74,54,60,38,79,88,82,91,87,89,91,76,78,64,95,41,92,93,120,96,96,89,116,114,107,118,142,79,143,118,194,140,248,270,257,233,460,453,452,435,790,829,777,716,885,847,809,700,670,507,459,459,429,451,29992,29993,29993,29994]} 1. e4 {[%emt 0:00:08]} c6 {[%emt 0:00:24]} 2. d4 {[%emt 0:00:06]} d5 {[%emt 0:00:04]} 3. e5 {[%emt 0:00:15]} Bf5 {[%emt 0:00:12]} 4. h4 {[%emt 0:00:15]} h6 {[%emt 0:01:16]} 5. g4 {[%emt 0:00:28]} Bd7 {[%emt 0:00:35][%cal Oh6h5] Black is weak on the dark squares} 6. Be3 {[%emt 0:00:51] B12: Caro-Kann: Advance Variation.} Qc8 {[%emt 0:02:45]} 7. Be2 {[%emt 0:03:39]} e6 {[%emt 0:05:07]} 8. h5 {[%emt 0:11:32] White is slightly better.} c5 {[%emt 0:01:17]} 9. c3 {[%emt 0:02:43] [#]} b5 $146 {[%emt 0:16:03]} ({Predecessor:} 9... a6 10. Nd2 Bb5 11. Bxb5+ axb5 12. dxc5 Bxc5 13. Bxc5 Qxc5 14. Nb3 Qc4 15. Qe2 Nc6 {0-1 Klek,H (2313)-Hammer,J (2650) PRO League KO Stage rapid 2019 (2)}) 10. f4 {[%emt 0:06:25]} b4 {[%emt 0:05:58]} 11. Nd2 {[%emt 0:05:05][%cal Bb1d2,Bd2f1,Bf1g3][%mdl 32]} bxc3 {[%emt 0:02:29]} 12. bxc3 {[%emt 0:00:17]} c4 {[%emt 0:02:05]} 13. Nf1 {[%emt 0:05:09]} Na6 {[%emt 0:05:41]} 14. Ng3 {[%emt 0:03:04]} Nc7 {[%emt 0:01:41]} 15. Qc2 {[%emt 0:07:01]} Qa6 {[%emt 0:03:37]} 16. a4 {[%emt 0:07:03]} Qa5 {[%emt 0:06:44]} 17. Kf2 {[%emt 0:04:40]} Rb8 {[%emt 0:02:12]} 18. Nf3 {[%emt 0:03:34]} Ne7 {[%emt 0:16:10]} 19. f5 {[%emt 0:07:01]} Rb3 {[%emt 0:02:58]} 20. Rhc1 {[%emt 0:08:31]} Nc8 {[%emt 0:05:53]} 21. fxe6 {[%emt 0:01:35]} (21. f6 $16) 21... Bxe6 {[%emt 0:04:01]} (21... Nxe6 $14 22. Nd2 Ra3) 22. Nf5 $16 {[%emt 0:00:52]} Kd7 {[%emt 0:02:46]} 23. Nd2 {[%emt 0:09:36]} Rb6 {[%emt 0:03:12]} 24. Kg2 {[%emt 0:00:33]} Rg8 {[%emt 0:02:30]} 25. Bf4 {[%emt 0:01:48]} (25. Rf1 {simplifies} Ke8 26. Kh2 Bd7 27. Bf4) 25... g6 {[%emt 0:04:27]} 26. hxg6 {[%emt 0:00:37]} (26. Nxh6 $6 Bxh6 27. Bxh6 Ne7 28. hxg6 Rxg6 $11) 26... Rxg6 {[%emt 0:00:06]} 27. Rh1 {[%emt 0:00:28]} ({Better is} 27. Kh2) 27... Ne7 {[%emt 0:00:37]} (27... Bxf5 $142 28. Qxf5+ Ne6) 28. Kf2 {[%emt 0:04:03] White is much more active.} (28. Nxh6 $2 Bxh6 29. Bxh6 (29. Rxh6 $2 Bf5 $19) 29... Bf5 $19) 28... Ng8 {[%emt 0:01:22]} (28... Kc8 $16 29. Bf3 (29. Bxh6 $2 {is the wrong capture.} Bxf5 {[%mdl 64] Remove Defender} 30. gxf5 Rxh6 $19) 29... Bd7 30. Nd6+ Kb8) 29. Rab1 {[%emt 0:01:51]} ({White should play} 29. Bf3 $18) 29... Ne8 {[%emt 0:00:36]} (29... Kd8 $16 {is a better defense.} 30. Rxb6 axb6) 30. Rxb6 $18 {[%emt 0:01:21]} axb6 {[%emt 0:00:11]} 31. Rb1 {[%emt 0:00:30]} Kc8 $2 {[%emt 0:01:26]} (31... Ne7 32. Nf1 Nc7) 32. Rb5 {[%emt 0:01:08]} Qa7 {[%emt 0:00:51]} 33. Qb1 {[%emt 0:01:00]} Qxa4 {[%emt 0:00:40]} (33... Bd7 $142 34. Rxd5 Be6) 34. Rxb6 {[%emt 0:00:29] [#] Rb8+ would kill now.} Qa7 {[%emt 0:00:25] Wards off Rb8+} 35. Nd6+ {[%emt 0:02:41]} Nxd6 {[%emt 0:00:34]} 36. exd6 {[%emt 0:00:09]} Bd7 {[%emt 0:00:21]} 37. Qb4 {[%emt 0:01:29][%cal Od2c4] Black must now prevent Nxc4!} Nf6 {[%emt 0:00:38]} 38. Qc5+ {[%emt 0:00:44]} Kd8 {[%emt 0:00:18]} 39. Qc7+ {[%emt 0:00:20]} Qxc7 {[%emt 0:00:10]} 40. dxc7+ {[%emt 0:00:00]} Ke7 {[%emt 0:00:00]} (40... Ke8 $18 41. Rb8+ Ke7) 41. Bd6+ {[%emt 0:02:17]} Ke8 {[%emt 0:04:56]} 42. Rb8+ {[%emt 0:00:11][%mdl 64] Skewer. A cool game by Urh.   Weighted Error Value: White=0.28 (precise) /Black=0.45} 1-0